Cogmind - Beta 17 @@@ ROGUE MODE // 2026.07.01 @ 21:02:51 Player: nnnnsk Result: Destroyed by 0Y-USB(R) with Subdweller Beam Cannon Performance ------------- Evolutions (0) 0 Regions Visited (2) 400 Robots Destroyed (35) 175 Value Destroyed (792) 792 Prototype IDs (0) 0 Alien Tech Used (0) 0 Bonus (0) 0 TOTAL SCORE: 1367 Bonus ------- None Cogmind --------- Core Integrity 0/250 Matter 300/300 Energy 200/200 System Corruption 0% Temperature Cool (9) Movement Walking (260) Ox2 Location -10/Subcaves Parts ------- > --- POWER (1) -------- Subdweller Power Source > --- PROPULSION (2) --- Aluminum Leg > --- UTILITY (2) ------ Medium Storage Unit Visual Processing Unit > --- WEAPON (2) ------- Subdweller Shrapnel Launcher Makeshift Hammer > --- INVENTORY (10) --- Large Storage Unit Large Battery (200) Weight Redist. System Terrain Scanner Makeshift System Shield Subdweller Laser Battle Rifle Subdweller Machine Gun Makeshift Spear Peak State ------------ > --- POWER ------------ Subdweller Power Source > --- PROPULSION ------- Aluminum Leg > --- UTILITY ---------- Medium Storage Unit Visual Processing Unit > --- WEAPON ----------- Grenade Launcher Makeshift Hammer > --- INVENTORY -------- Ion Engine Large Storage Unit Large Battery Weight Redist. System Terrain Scanner Makeshift System Shield Subdweller Laser Battle Rifle Subdweller Machine Gun Makeshift Spear [Rating: 13] Favorites ----------- Power Light Ion Engine Engine Light Ion Engine Power Core Light Nuclear Core Propulsion Light Treads Treads Light Treads Leg Aluminum Leg Utility Visual Processing Unit Device Improved Terrain Scanner Storage Medium Storage Unit Processor Visual Processing Unit Weapon Grenade Launcher Energy Gun Particle Gun Ballistic Gun Light Assault Rifle Launcher Grenade Launcher Impact Weapon Makeshift Hammer Build | -11 -10 -10 ------- Run | Yrd Mat Sub Slots Evolved . | . . . Power . | . . . Propulsion . | . . . Utility . | . . . Weapon . | . . . Parts Attached 27 | 7 10 10 Power 7 | 1 3 3 Engine 6 | 1 2 3 Core 1 | . 1 . Reactor . | . . . Propulsion 6 | 2 3 1 Treads 3 | 2 1 . Leg 3 | . 2 1 Wheel . | . . . Hover . | . . . Flight . | . . . Utility 6 | 2 2 2 Device 2 | 1 1 . Storage 3 | 1 1 1 Processor 1 | . . 1 Hackware . | . . . Protection . | . . . Artifact . | . . . Weapon 8 | 2 2 4 Energy Gun 2 | 1 1 . Energy Cannon . | . . . Ballistic Gun 2 | 1 . 1 Ballistic Cannon . | . . . Launcher 3 | . 1 2 Special Weapon . | . . . Impact Weapon 1 | . . 1 Slashing Weapon . | . . . Piercing Weapon . | . . . Special Melee Weapon . | . . . Unidentified Prototypes . | . . . Parts Lost 9 | . 3 6 Power 1 | . . 1 Propulsion 4 | . 2 2 Utility 1 | . 1 . Weapon 3 | . . 3 Highest Loss Streak 3 | . 1 3 To Critical Strikes . | . . . Average Backups 9 | 1 9 9 Power . | . 1 . Propulsion 1 | 1 2 . Utility 3 | . 2 4 Weapon 3 | . 3 4 Tool/Special . | . . . Unused Backups 17 | . 5 12 Power 1 | . . 1 Propulsion 4 | . 4 . Utility 4 | . . 4 Weapon 8 | . 1 7 Tool/Special . | . . . Average Slot Usage (%) 92 | . 99 86 Engine 11 | . 9 13 Core 2 | . 4 . Treads 10 | . 24 . Leg 10 | . 3 15 Device 6 | . 13 . Storage 14 | . 14 14 Processor 7 | . . 13 Energy Gun 6 | . 14 . Ballistic Gun 6 | . 11 3 Launcher 8 | . 2 13 Impact Weapon 6 | . . 11 Peak Build Rating 13 | 9 11 13 Average Rating 10 | 5 9 11 On Entrance 6 | . 9 11 Avg Prop Armor Cover (%) . | . . . Naked Turns . | . . . Heaviest Build 32 | 11 32 32 Greatest Support 40 | 40 40 20 Greatest Overweight (x) 2 | . 1 2 Average Overweight (x) . | . . 1 Largest Inventory Capacity 15 | 8 15 15 Average Capacity 10 | 7 10 10 Most Carried 15 | 3 15 15 Average Carried 9 | 1 9 9 Final Capacity 15 | 8 15 10 Final Carried 15 | 3 15 9 Class Distribution -------------------- 90% | Mutant 9% | Scavenger-Mutant Dominant Class ---------------- Mutant | -10/Materials Mutant | -10/Subcaves Resources | -11 -10 -10 ----------- Run | Yrd Mat Sub Matter Collected 781 | 194 261 326 Remotely . | . . . Salvage Created 850 | 88 642 120 Parts 63 | 2 51 10 Haulers Intercepted 2 | . 2 . Recyclers Shooed 1 | . 1 . Parts Field Recycled . | . . . Retrieved Matter . | . . . Parts Self-Destructed 5 | . . 5 Prevented . | . . . Parts Restored . | . . . Kills | -11 -10 -10 ------- Run | Yrd Mat Sub Combat Hostiles Destroyed 26 | . 17 9 Melee 1 | . . 1 Guns 11 | . 10 1 AOE 14 | . 7 7 Classes Destroyed 8 | 2 5 1 Builder 1 | . 1 . Tunneler 1 | 1 . . Hauler 2 | . 2 . Recycler 2 | 1 1 . Watcher 3 | . 3 . Swarmer 11 | . 7 4 Grunt 10 | . 10 . Subdweller 5 | . . 5 Best Kill Streak 4 | 1 4 4 Combat Bots Only 4 | . 3 4 Max Kills in Single Turn 3 | 1 2 3 Gunslinging . | . . . Exploded 3 | . 2 3 Melee 1 | . . 1 Uniques/NPCs Destroyed . | . . . Combat | -11 -10 -10 -------- Run | Yrd Mat Sub Hostile Shots Fired 148 | . 100 48 Missed 44 | . 31 13 Hits 104 | . 69 35 Projectile 104 | . 69 35 Critical Strikes 1 | . . 1 Damage Taken 1364 | . 712 652 Core 259 | . 125 134 Absorbed by Shields . | . . . Core Remaining (%) 100 | 100 . . Volleys Fired 96 | 11 72 13 Largest 2 | 2 2 2 Hottest 95 | 60 95 95 Shots Fired 172 | 22 134 16 Gun 150 | 22 123 5 Cannon . | . . . Launcher 22 | . 11 11 Special . | . . . Kinetic 76 | 11 61 4 Thermal 74 | 11 62 1 Explosive 22 | . 11 11 Electromagnetic . | . . . Robot Hit Streak 12 | 7 12 4 Robot Miss Streak 5 | 1 5 1 Penetration Max . | . . . Secondary Targets 1 | . 1 . Max Gunslinging Chain 1 | . 1 . Shots Hit Robots 106 | 15 79 12 Core Hits 72 | 4 52 16 Critical Kills . | . . . Critical Parts Destroyed . | . . . Critical Strikes . | . . . Melee Attacks 21 | . . 21 Impact 21 | . . 21 Slashing . | . . . Piercing . | . . . Sneak Attacks . | . . . Combat Hostiles . | . . . Follow-up Attacks . | . . . Damage Inflicted 2355 | 139 1248 968 Guns 977 | 139 813 25 Cannons . | . . . Explosions 1173 | . 435 738 Melee 205 | . . 205 Ramming . | . . . Kinetic 418 | 73 320 25 Thermal 559 | 66 493 . Explosive 1165 | . 427 738 Electromagnetic 8 | . 8 . Impact 205 | . . 205 Slashing . | . . . Piercing . | . . . Highest Corruption . | . . . Average Corruption . | . . . Corruption Purged . | . . . Corruption Blocked . | . . . Overload Shots . | . . . Overflow Damage 13 | . . 13 Projectiles . | . . . Explosions 13 | . . 13 Melee . | . . . Knockbacks 1 | . . 1 Impact 1 | . . 1 Kinetic . | . . . Secondary . | . . . Self-Inflicted Damage 44 | . 44 . Shots 3 | . 3 . Rammed . | . . . Targets Rammed . | . . . Kicked . | . . . Crushed . | . . . Highest Temperature 276 | 40 276 . Average Temperature 65 | 18 70 . Received Heat Transfer 375 | . 228 147 Siege Activations . | . . . Martial Activations . | . . . Shielding Activations . | . . . Robots Disrupted . | . . . Combat Hostiles . | . . . Robots Corrupted . | . . . Combat Hostiles . | . . . Parts Fried . | . . . Impact Corruptions . | . . . Robots Melted . | . . . Combat Hostiles . | . . . Parts Melted 1 | . 1 . Heat Transferred 1306 | 150 1156 . Parts Sabotaged . | . . . Parts Stolen . | . . . Parts Stripped . | . . . Power Chain Reactions . | . . . Alert | -11 -10 -10 ------- Run | Yrd Mat Sub Maximum Alert Level 1 | . 1 . Low Security (%) 86 | 100 84 . Level 1 13 | . 15 . Level 2 . | . . . Level 3 . | . . . Level 4 . | . . . Level 5 . | . . . High Security . | . . . Max Security . | . . . Peak Influence 239 | 5 239 . Initial . | . . . Average 93 | . 103 . Influence Increases 748 | 10 613 125 Destroy 0b10 Robot/C 420 | . 340 80 Destroy 0b10 Robot/NC 45 | 10 35 . Destroy Leader 70 | . 70 . Successful Hack 16 | . 16 . Disable Machine 60 | . 60 . Destroy Structure 62 | . 62 . Lose Combat Pursuer 75 | . 30 45 Influence Decreases 748 | 10 413 325 Entered New Map 96 | . . 96 Time Decay 582 | 10 383 189 Lost Part 70 | . 30 40 Squads Dispatched 3 | . 3 . Investigation 1 | . 1 . Extermination . | . . . Reinforcement 2 | . 2 . Assault . | . . . Garrison . | . . . Intercept . | . . . Searches Triggered . | . . . Construction Impeded . | . . . Haulers Reinforced . | . . . Active Scanning Responses . | . . . Cargo Convoy Interrupts . | . . . Stealth | -11 -10 -10 --------- Run | Yrd Mat Sub Distress Signals 1 | . 1 . Communications Jammed . | . . . Distress Signals . | . . . Times Spotted 45 | . 33 12 Peak Tracking Total 6 | . 5 6 Tactical Retreats 3 | . 2 1 Traps | -11 -10 -10 ------- Run | Yrd Mat Sub Traps Triggered 1 | . . 1 Indirectly . | . . . Trap Hack Attempts . | . . . Triggered . | . . . Disarmed . | . . . Reprogrammed . | . . . Reused . | . . . Traps Extracted . | . . . Installed . | . . . Triggered . | . . . Machines | -11 -10 -10 ---------- Run | Yrd Mat Sub Machines Disabled 7 | . 5 2 Max in Single Turn 2 | . 2 2 Machines Repaired . | . . . Machines Dismantled . | . . . Machines Sabotaged . | . . . Overloaded Fab Kills . | . . . Hacking | -11 -10 -10 --------- Run | Yrd Mat Sub Machines Accessed 6 | . 5 1 Terminals 5 | . 5 . Fabricators . | . . . Repair Stations . | . . . Recycling Units . | . . . Scanalyzers . | . . . Garrison Access . | . . . Total Hacks 19 | . 15 4 Successful 12 | . 8 4 Failed 7 | . 7 . Catastrophic . | . . . Database Lockouts . | . . . Manual 13 | . 13 . Terminals 15 | . 15 . Fabricators . | . . . Repair Stations . | . . . Recycling Units . | . . . Scanalyzers . | . . . Garrison Access . | . . . Terminal Hacks 7 | . 3 4 Record 4 | . . 4 Level Access Points 1 | . 1 . Terminal Index 1 | . 1 . Locate Traps 1 | . 1 . Fabricator Hacks . | . . . Repair Station Hacks . | . . . Recycling Unit Hacks . | . . . Scanalyzer . | . . . Garrison Access Hacks . | . . . Unauthorized Hacks 5 | . 5 . Terminals 5 | . 5 . Botnet 4 | . 4 . Skim 1 | . 1 . Fabricators . | . . . Repair Stations . | . . . Recycling Units . | . . . Scanalyzers . | . . . Garrison Access . | . . . Data Cores Recovered . | . . . Used . | . . . Hacking Detections 5 | . 5 . Full Trace Events . | . . . Feedback Events . | . . . Feedback Blocked . | . . . Robot Schematics Acquired . | . . . Robots Built . | . . . Authchips . | . . . Time . | . . . Total Robot Build Rating . | . . . Part Schematics Acquired . | . . . Parts Built . | . . . Authchips . | . . . Time . | . . . Total Part Build Rating . | . . . Part Studies Acquired . | . . . Parts Repaired . | . . . Time . | . . . Parts Recycled . | . . . Recycled Matter . | . . . Retrieved Matter . | . . . Retrieved Components . | . . . Parts Scanalyzed . | . . . Part Schematics Acquired . | . . . Parts Damaged . | . . . Bothacking | -11 -10 -10 ------------ Run | Yrd Mat Sub Used RIF Installer . | . . . Robots Hacked . | . . . Non-combat . | . . . Combat . | . . . Robot Hacks Applied . | . . . Relay Couplers Released . | . . . Fabnet Peak Effective % . | . . . Robots Rewired . | . . . Allies Hacked . | . . . Hacks Repelled . | . . . Allies | -11 -10 -10 -------- Run | Yrd Mat Sub Total Allies . | . . . Largest Group . | . . . Highest-Rated Group . | . . . Highest-Rated Ally . | . . . Total Orders . | . . . Ally Attacks . | . . . Total Damage . | . . . Kills . | . . . Allies Corrupted . | . . . Allies Melted . | . . . Intel | -11 -10 -10 ------- Run | Yrd Mat Sub Active Infowar (turns) 2827 | 29 1207 1591 Optics 1583 | . . 1583 Terrain 1244 | 29 1207 8 Robot Analysis Total . | . . . Derelict Logs Recovered 2 | . . 2 Drone Launches . | . . . Drone Recoveries . | . . . Exploration | -11 -10 -10 ------------- Run | Yrd Mat Sub Turns Passed 2932 | 130 1210 1592 Spaces Moved 1254 | 57 542 655 Core 4 | 4 . . Treads 514 | 53 461 . Legs 736 | . 81 655 Wheels . | . . . Hover . | . . . Flight . | . . . Fastest Speed 50 | 50 160 120 Average Speed 196 | 152 164 227 Slowest Speed 260 | 160 190 260 Overloaded Moves . | . . . Propulsion Burnouts . | . . . Robots Hopped . | . . . Potential Cave-ins . | . . . Cave-ins Triggered . | . . . Exploration Rate (%) 40 | 4 73 45 Regions Visited 2 Branch Regions 1 Pre-discovered Areas . | . . . Known Exits Taken . | . . . Unknown Exits Taken 2 | 1 1 . Scrap Searched 6 | . . 6 Spaces Dug 6 | . . 6 Terrain Destroyed 130 | . 66 64 Melee 6 | . . 6 Projectile . | . . . AOE 124 | . 66 58 Terrain Rammed . | . . . Walls Destroyed . | . . . Machines Disabled . | . . . Actions | -11 -10 -10 --------- Run | Yrd Mat Sub Total 1544 | 77 742 725 Wait 85 | . 81 4 Move 1252 | 56 541 655 Hop . | . . . Pick Up 33 | 3 22 8 Fast Attach 8 | 7 . 1 Attach 10 | . 4 6 Detach . | . . . Swap 15 | . 10 5 Drop 24 | . 12 12 Fire 96 | 11 72 13 Melee 21 | . . 21 Ram . | . . . Kick . | . . . Crush . | . . . Escape Stasis . | . . . Rewire . | . . . Trap . | . . . Miscellaneous . | . . . Route ------- -11/Scrapyard -10/Materials (discovered 5 exits: *Mat x3 / [*Min] / *Sub) -10/Subcaves (discovered 3 exits: *Mat x2 / [*Rec]) History --------- Turn | Location | Event 47 | -11/Scrapyard | Discovered new exit (range 15) 131 | -11/Scrapyard | Entered Materials 303 | -10/Materials | Build established: Mutant 570 | -10/Materials | Discovered new exit (range 15) 755 | -10/Materials | Discovered new exit (range 16) 944 | -10/Materials | Discovered new exit (range 15) 972 | -10/Materials | Identified exit to Materials 1131 | -10/Materials | Derelicts attacked the area 1322 | -10/Materials | Discovered new exit (range 4) 1341 | -10/Materials | Entered Subcaves 1373 | -10/Subcaves | Core integrity fell below 50% 1412 | -10/Subcaves | Lost 3 parts (1p2w) 1449 | -10/Subcaves | Ambushed by Subdwellers from Twisted Machinery 1650 | -10/Subcaves | Shifting Twisted Machinery released Mak. Hammer 1658 | -10/Subcaves | Shifting Twisted Machinery released Mak. System Shield 1999 | -10/Subcaves | Discovered new exit (range 15) 2640 | -10/Subcaves | Visited Clippyterm 2648 | -10/Subcaves | Identified exit to Materials 2664 | -10/Subcaves | A swath of the cavern ceiling suddenly collapsed 2893 | -10/Subcaves | Core integrity fell below 20% 2933 | -10/Subcaves | Destroyed by 0Y-USB(R) with Subdweller Beam Cannon Last Messages --------------- 02890_ Grenade Launcher destroyed. 02892_ 33-VV6(R) knocked back. 02897_ 33-VV6(R) destroyed. 02899_ Acquired 31 matter. 02900_ Subatomizers dissect the Sub. Optics. 02907_ Searching scrap... 02907_ Found Sub. Shrapnel Launcher. 02907_ Found Flamer. 02907_ Found 45 Matter. 02908_ Acquired 1 matter. 02910_ Subatomizers dissect the Sub. Optics. 02911_ Dropped Ion Engine. 02911_ Acquired Sub. Shrapnel Launcher. 02913_ Acquired 10 matter. 02915_ Searching scrap... 02915_ Found Flamer. 02915_ Found 69 Matter. 02921_ 0Y-USB(R) angrily emerges from the Twisted Machinery. 02923_ Subatomizers dissect the Flamer. Map ----- +----------------------------------------------------+ | ????????????????????????????????? | | ????????????????????????????????? | | ????????????????????????????????? | | ????????????????????????????????? | | ????????????????????????????????? | | ????????????????????????????????? | | ????????????????????????????????? | | ????????????????????????????????? | | ????????????????????????????????? | | ????????????????????????????????? | | ????????????????????????????????? | | ????????????????????????????????? | | ????????????????????????????????? | | ????????????????????????????????? | | ????????###????####?????????????? | | ???????## $##??# ####??????????? | | ???????#" "?## ##?????????? | | ???????# ?# ####??????? | | ???????? ###" ###????? | | ???????? # # " #????? | | ????#???# # ### #?? | | ??### ??# # ###?????## ## | | ??#<< ### # #" #????????????? # | | ??#<< $# ##*## #????????????? ? | | ??# & R ! # #####????????? ? | | ??????<*@ <## ##??????? ? | | ??# #%| <## ####???? ? | | ??#$ <<#%| <### ##??? #? | | ??##$